bitfinex/quotes_BTCUSD_20250709
["timestamp","ask_amount","ask_price","bid_price","bid_amount"]
[1752104802431,15.39598624,111520.0,111510.0,1.42131664]
[1752104804744,15.38522018,111520.0,111510.0,1.42131664]
[1752104805586,15.38740018,111520.0,111510.0,1.43585749]
[1752104810485,15.38740018,111520.0,111510.0,1.40025749]
[1752104811023,15.38740018,111520.0,111510.0,1.41775749]
[1752104812265,15.88310263,111520.0,111510.0,0.12137593]
[1752104812475,16.40377597,111520.0,111510.0,0.003]
[1752104812688,16.33428595,111520.0,111510.0,0.003]
[1752104812900,16.04449806,111520.0,111510.0,0.003]
[1752104813150,15.75473379,111520.0,111510.0,0.002]
[1752104813351,0.06080204,111510.0,111500.0,0.21569156]
[1752104813571,0.19937499,111510.0,111500.0,0.21569156]
[1752104813778,0.19712204,111510.0,111500.0,0.21569156]
[1752104815154,0.2060896,111510.0,111500.0,0.21569156]
[1752104815287,0.21505732,111510.0,111500.0,0.21569156]
[1752104815754,0.21725732,111510.0,111500.0,0.21569156]
[1752104816370,0.39661343,111510.0,111500.0,0.21569156]
[1752104816569,0.38764635,111510.0,111500.0,0.19775556]
[1752104816817,0.38764635,111510.0,111500.0,0.00044673]
[1752104816818,0.36074383,111510.0,111500.0,0.00044673]
[1752104817032,0.6505081,111510.0,111500.0,0.00044673]
[1752104819129,0.6515081,111510.0,111500.0,0.00044673]
[1752104819770,0.6525081,111510.0,111500.0,0.00044673]
[1752104820400,0.36274383,111510.0,111500.0,0.00044673]
[1752104821654,0.36274383,111510.0,111500.0,0.19775604]
[1752104822686,0.36274383,111510.0,111500.0,0.00044673]
[1752104822915,0.36054383,111510.0,111500.0,0.00044673]
[1752104823126,0.35377611,111510.0,111500.0,0.00044673]
[1752104823563,0.21745611,111510.0,111500.0,0.00044673]
[1752104823990,0.23539131,111510.0,111500.0,0.49648827]
[1752104824197,0.38071855,111510.0,111500.0,0.48752015]
[1752104824401,0.37175131,111510.0,111500.0,0.48752031]
[1752104825061,0.36278383,111510.0,111500.0,0.00044673]
[1752104825475,0.36278383,111510.0,111500.0,0.18878752]
[1752104826693,0.35381611,111510.0,111500.0,0.00941533]
[1752104827534,0.35381611,111510.0,111500.0,0.00044673]
[1752104828594,0.35381611,111510.0,111500.0,0.17981892]
[1752104828794,0.35381611,111510.0,111500.0,0.00044673]
[1752104829080,0.64358038,111510.0,111500.0,0.00044673]
[1752104829296,1.18800924,111510.0,111500.0,0.00044673]
[1752104829507,1.09657231,111510.0,111500.0,0.00044673]
[1752104829696,0.80680804,111510.0,111500.0,0.00044673]
[1752104830122,0.44525304,111510.0,111500.0,0.00044673]
[1752104830323,0.73501731,111510.0,111500.0,0.00044673]
[1752104835505,0.44525304,111510.0,111500.0,0.00044673]
[1752104836167,0.73501731,111510.0,111500.0,0.00044673]
[1752104839058,0.59865731,111510.0,111500.0,0.00044673]
[1752104839269,0.73501731,111510.0,111500.0,0.00044673]
[1752104842010,0.44525304,111510.0,111500.0,0.00044673]
[1752104842235,0.76724827,111510.0,111500.0,0.00044673]
[1752104843548,0.63088827,111510.0,111500.0,0.00044673]
[1752104843761,0.76724827,111510.0,111500.0,0.00044673]
[1752104845339,1.05701254,111510.0,111500.0,0.00044673]
[1752104845476,1.39701254,111510.0,111500.0,0.00044673]
[1752104845893,1.50800843,111510.0,111500.0,0.00044673]
[1752104846292,1.56171536,111510.0,111500.0,0.00044673]
[1752104846528,1.56071536,111510.0,111500.0,0.00044673]
[1752104846728,1.56371536,111510.0,111500.0,0.00044673]
[1752104847402,1.62304104,111510.0,111500.0,0.00044673]
[1752104847936,1.44647588,111510.0,111500.0,0.00044673]
[1752104848265,0.22393063,111500.0,111490.0,0.0004]
[1752104848482,0.81403013,111500.0,111490.0,0.0004]
[1752104848836,0.67767013,111500.0,111490.0,0.0004]
[1752104849052,0.81403013,111500.0,111490.0,0.0004]
[1752104851230,0.81703013,111500.0,111490.0,0.0004]
[1752104852083,1.03247013,111500.0,111490.0,0.0004]
[1752104852942,0.89611013,111500.0,111490.0,0.0004]
[1752104853150,1.12690706,111500.0,111490.0,0.0004]
[1752104855571,0.99054706,111500.0,111490.0,0.0004]
[1752104855772,1.12690706,111500.0,111490.0,0.0004]
[1752104858102,1.18061399,111500.0,111490.0,0.0004]
[1752104858720,1.12690706,111500.0,111490.0,0.0004]
[1752104859775,1.18061399,111500.0,111490.0,0.0004]
[1752104860160,1.12690706,111500.0,111490.0,0.0004]
[1752104863293,1.18061399,111500.0,111490.0,0.0004]
[1752104865257,1.12690706,111500.0,111490.0,0.0004]
[1752104868235,1.14144791,111500.0,111490.0,0.0004]
[1752104870685,6.14144791,111500.0,111490.0,0.0004]
[1752104872436,6.05001098,111500.0,111490.0,0.0004]
[1752104872961,6.05002098,111500.0,111490.0,0.0004]
[1752104877853,1.05002098,111500.0,111490.0,0.0004]
[1752104880137,0.91366098,111500.0,111490.0,0.0004]
[1752104880346,0.86572013,111500.0,111490.0,0.0004]
[1752104880528,1.00208013,111500.0,111490.0,0.0004]
[1752104880762,0.86572013,111500.0,111490.0,0.0004]
[1752104880969,1.00208013,111500.0,111490.0,0.0004]
[1752104881409,1.09351706,111500.0,111490.0,0.0004]
[1752104881619,1.05320972,111500.0,111490.0,0.0004]
[1752104881829,1.09351706,111500.0,111490.0,0.0004]
[1752104882007,1.00208013,111500.0,111490.0,0.0004]
[1752104882210,0.96177279,111500.0,111490.0,0.0004]
[1752104882417,1.00208013,111500.0,111490.0,0.0004]
[1752104882641,0.96177279,111500.0,111490.0,0.0004]
[1752104882883,0.67200852,111500.0,111490.0,0.0004]
[1752104883094,0.96177279,111500.0,111490.0,0.0004]
[1752104883299,0.71231586,111500.0,111490.0,0.0004]
[1752104883506,0.96177279,111500.0,111490.0,0.03687]
[1752104883733,0.82541279,111500.0,111490.0,0.01997]
[1752104883940,1.01190852,111500.0,111490.0,0.03687]
[1752104884125,1.30167279,111500.0,111490.0,0.03687]
[1752104884568,1.30171279,111500.0,111490.0,0.03687]
[1752104884784,1.30171279,111500.0,111490.0,0.05369392]
[1752104884993,0.67889688,111500.0,111490.0,0.05693392]
[1752104885203,0.41874915,111500.0,111490.0,0.2363222]
[1752104885415,0.56419727,111500.0,111490.0,0.2363222]
[1752104885622,0.56419727,111500.0,111490.0,0.24529161]
[1752104885839,0.56419727,111500.0,111490.0,0.2363222]
[1752104885957,0.42771727,111500.0,111490.0,0.24529161]
[1752104886174,0.21227719,111500.0,111490.0,0.55299446]
[1752104886376,0.34875719,111500.0,111490.0,0.56196363]
[1752104886600,0.34875719,111500.0,111490.0,0.58891263]
[1752104886805,0.34875719,111500.0,111490.0,0.59788172]
[1752104887006,0.34875719,111500.0,111490.0,0.29914836]
[1752104887944,0.34875719,111500.0,111490.0,0.29017919]
[1752104889648,0.21227719,111500.0,111490.0,0.28120994]
[1752104889959,0.34871719,111500.0,111490.0,0.28120994]
[1752104890579,0.34871719,111500.0,111490.0,0.27224061]
[1752104890773,0.33974907,111500.0,111490.0,0.27224061]
[1752104890980,0.33974907,111500.0,111490.0,0.28120994]
[1752104892888,0.33974907,111500.0,111490.0,0.29017919]
[1752104893528,0.33974907,111500.0,111490.0,0.27224061]
[1752104894478,0.33974907,111500.0,111490.0,0.2632712]
[1752104895182,0.33078071,111500.0,111490.0,0.2632712]
[1752104895503,0.62273498,111500.0,111490.0,0.05369392]
[1752104895727,0.62273498,111500.0,111490.0,0.01722392]
[1752104896202,0.71417191,111500.0,111490.0,0.01722392]
[1752104896658,0.71399191,111500.0,111490.0,0.01722392]
[1752104896899,0.71417191,111500.0,111490.0,0.01722392]
[1752104897983,0.71417191,111500.0,111490.0,0.03472392]
[1752104898197,0.71417191,111500.0,111490.0,0.03467497]
[1752104898412,0.71417191,111500.0,111490.0,0.05287497]
[1752104900930,0.71417191,111500.0,111490.0,0.03467497]
[1752104901585,0.71417191,111500.0,111490.0,0.05277497]
[1752104902906,0.71417191,111500.0,111490.0,0.0518169]
[1752104903087,0.42221764,111500.0,111490.0,0.24213459]
[1752104903339,0.33090071,111500.0,111490.0,0.23316518]
[1752104903549,0.32193219,111500.0,111490.0,0.23316518]
[1752104903731,0.32412219,111500.0,111490.0,0.0537769]
[1752104904750,0.32412219,111500.0,111490.0,0.01677497]
[1752104905107,0.32392219,111500.0,111490.0,0.21632325]
[1752104905795,0.32392219,111500.0,111490.0,0.23412325]
[1752104906107,0.18537219,111500.0,111490.0,0.23412325]
[1752104906308,0.32197219,111500.0,111490.0,0.23412325]
[1752104906498,0.32395219,111500.0,111490.0,0.05473497]
[1752104906724,0.61393646,111500.0,111490.0,0.03653497]
[1752104906937,0.61093646,111500.0,111490.0,0.03457497]
[1752104907145,0.61093646,111500.0,111490.0,0.01677497]
[1752104907903,0.60793646,111500.0,111490.0,0.01677497]
[1752104908126,0.47133646,111500.0,111490.0,0.01677497]
[1752104908327,0.47233646,111500.0,111490.0,0.01677497]
[1752104908789,0.56477339,111500.0,111490.0,0.01677497]
[1752104909238,0.70141339,111500.0,111490.0,0.01677497]
[1752104909435,0.79115501,111500.0,111490.0,0.01677497]
[1752104909654,0.19055753,111490.0,111480.0,0.0004]
[1752104909873,0.60775873,111490.0,111480.0,0.0171951]
[1752104910295,0.94775873,111490.0,111480.0,0.0171951]
[1752104911515,0.94775873,111490.0,111480.0,0.0181951]
[1752104912578,1.03919566,111490.0,111480.0,0.0181951]
[1752104912778,1.17583566,111490.0,111480.0,0.0181951]
[1752104915455,1.17583566,111490.0,111480.0,0.0182027]
[1752104917552,1.46559993,111490.0,111480.0,0.0182027]
[1752104917762,1.46859993,111490.0,111480.0,0.0182027]
[1752104917972,1.17883566,111490.0,111480.0,0.0172027]
[1752104918152,1.18183566,111490.0,111480.0,0.0172027]
[1752104918390,1.18183566,111490.0,111480.0,0.01719117]
[1752104919699,1.19637651,111490.0,111480.0,0.01719117]
[1752104921404,1.48614078,111490.0,111480.0,0.01719117]
[1752104921620,1.48614078,111490.0,111480.0,1e-08]
[1752104921842,1.51835672,111490.0,111480.0,1e-08]
[1752104922055,1.15833381,111480.0,111470.0,0.0057294]
[1752104922337,1.47776767,111480.0,111470.0,0.0057294]
[1752104924299,1.38633074,111480.0,111470.0,0.0057294]
[1752104924509,1.38833074,111480.0,111470.0,0.0057294]
[1752104924720,1.38933074,111480.0,111470.0,0.0057294]
[1752104926537,1.41686809,111480.0,111470.0,0.0057294]
[1752104926745,1.44905978,111480.0,111470.0,0.0057294]
[1752104927000,1.54049671,111480.0,111470.0,0.0057294]
[1752104929487,1.54048704,111480.0,111470.0,0.0057294]
[1752104930152,1.50830502,111480.0,111470.0,0.0057294]
[1752104930710,1.54048677,111480.0,111470.0,0.0057294]
[1752104933847,1.54048677,111480.0,111470.0,0.02249453]
[1752104934706,1.54048677,111480.0,111470.0,0.0057294]
[1752104935129,1.54048677,111480.0,111470.0,0.02249662]
[1752104935343,1.50830502,111480.0,111470.0,0.02249662]
[1752104935567,1.54050146,111480.0,111470.0,0.02249662]
[1752104937553,0.96097292,111480.0,111470.0,0.02249662]
[1752104937766,1.54050146,111480.0,111470.0,0.02249662]
[1752104939430,1.58074702,111480.0,111470.0,0.02249662]
[1752104940886,1.58088079,111480.0,111470.0,0.02249662]
[1752104942486,1.48944386,111480.0,111470.0,0.02249662]
[1752104944236,1.48919386,111480.0,111470.0,0.02249662]
[1752104944400,1.48944386,111480.0,111470.0,0.02249662]
[1752104945441,1.54315079,111480.0,111470.0,0.02249662]
[1752104946090,6.54315079,111480.0,111470.0,0.01351619]
[1752104946326,0.20485218,111470.0,111460.0,0.0104]
[1752104946534,0.83099915,111470.0,111460.0,0.0104]
[1752104947162,0.19031822,111460.0,111450.0,0.0004]
[1752104947380,1.06592959,111460.0,111450.0,0.0004]
[1752104947597,0.81648519,111460.0,111450.0,0.00044676]
[1752104947815,0.83292523,111460.0,111450.0,0.00044676]
[1752104948017,0.83294753,111460.0,111450.0,0.00044676]
[1752104948436,0.81650749,111460.0,111450.0,0.00044676]
[1752104948643,0.87021442,111460.0,111450.0,0.00044676]
[1752104949039,0.81650749,111460.0,111450.0,0.00044676]
[1752104949243,0.79880749,111460.0,111450.0,0.00044676]
[1752104949585,0.78080749,111460.0,111450.0,0.00044676]
[1752104949999,0.26100629,111460.0,111450.0,0.33107103]
[1752104950154,0.34275162,111460.0,111450.0,0.51949624]
[1752104950367,0.33378004,111460.0,111450.0,0.04130676]
[1752104950579,0.02691426,111460.0,111450.0,0.53744086]
[1752104950744,0.1544226,111460.0,111450.0,0.54641308]
[1752104950945,0.17336592,111460.0,111450.0,0.54641317]
[1752104951564,0.16439418,111460.0,111450.0,0.55838523]
[1752104951781,0.3518024,111460.0,111450.0,0.53146871]
[1752104951977,0.3518024,111460.0,111450.0,0.53346871]
[1752104952197,0.34283122,111460.0,111450.0,0.53346887]
[1752104952421,0.34283122,111460.0,111450.0,0.52449632]
[1752104952628,0.34283122,111460.0,111450.0,0.24370452]
[1752104952827,0.32488822,111460.0,111450.0,0.04630676]
[1752104954288,0.32488822,111460.0,111450.0,0.22575942]
[1752104954710,0.31591656,111460.0,111450.0,0.04630676]
[1752104955137,0.40735349,111460.0,111450.0,0.04630676]
[1752104958167,0.41652252,111460.0,111450.0,0.04630676]
[1752104958380,0.41652252,111460.0,111450.0,0.06312073]
[1752104960584,0.40735349,111460.0,111450.0,0.06312073]
[1752104961579,0.41639863,111460.0,111450.0,0.06312073]
[1752104961786,0.40735349,111460.0,111450.0,0.06312073]
[1752104963041,0.40735349,111460.0,111450.0,0.24257339]
[1752104963265,0.40727349,111460.0,111450.0,0.24257339]
[1752104963949,0.18838137,111470.0,111450.0,0.53228252]
[1752104964164,0.2798183,111470.0,111460.0,0.04011]
[1752104964366,0.4162183,111470.0,111460.0,0.05692397]
[1752104965030,0.18838137,111470.0,111460.0,0.23636053]
[1752104965235,0.32478137,111470.0,111460.0,0.05692397]
[1752104965560,0.32478137,111470.0,111460.0,0.05792397]
[1752104968120,0.32478137,111470.0,111460.0,0.23736053]
[1752104968498,0.32478137,111470.0,111460.0,0.05792397]
[1752104969150,0.18838137,111470.0,111460.0,0.05792397]
[1752104969354,0.32478137,111470.0,111460.0,0.05792397]
[1752104969795,0.18838137,111470.0,111460.0,0.23736053]
[1752104970021,0.32478137,111470.0,111460.0,0.23736053]
[1752104971283,0.32478137,111470.0,111460.0,0.05792397]
[1752104973579,0.18838137,111470.0,111460.0,0.05792397]
[1752104973837,0.32478137,111470.0,111460.0,0.05792397]
[1752104978314,0.32478137,111470.0,111460.0,0.05482397]
[1752104979532,0.32478137,111470.0,111460.0,0.05796397]
[1752104980731,0.32478137,111470.0,111460.0,0.05482397]
[1752104986442,0.32697137,111470.0,111460.0,0.05482397]
[1752104987824,0.61673564,111470.0,111460.0,0.05482397]
[1752104988966,0.32697137,111470.0,111460.0,0.05482397]
[1752104989598,0.32697137,111470.0,111460.0,0.03792397]
[1752104991128,1.10112544,111470.0,111460.0,0.01782002]
[1752104991333,6.11566629,111470.0,111460.0,0.01782002]
[1752104991592,5.70405912,111470.0,111460.0,0.01782002]
[1752104991756,0.82591827,111470.0,111460.0,0.01782002]
[1752104991971,0.56288134,111470.0,111460.0,0.01782002]
[1752104992159,0.56069134,111470.0,111460.0,0.05454002]
[1752104992376,0.32478137,111470.0,111460.0,0.05454002]
[1752104992578,0.32578137,111470.0,111460.0,0.05454002]
[1752104992936,0.32578137,111470.0,111460.0,0.0545324]
[1752104993584,0.18938137,111470.0,111460.0,0.0545324]
[1752104993783,0.32578137,111470.0,111460.0,0.0535324]
[1752104994183,0.32678137,111470.0,111460.0,0.0535324]
[1752104994593,0.32797137,111470.0,111460.0,0.0535324]
[1752104994822,0.32797137,111470.0,111460.0,0.0188324]
[1752104995233,0.32697137,111470.0,111460.0,0.0188324]
[1752104995421,0.32697137,111470.0,111460.0,0.0178124]
[1752104996110,0.19057137,111470.0,111460.0,0.0358124]
[1752104996324,0.32697137,111470.0,111460.0,0.0358124]
[1752104996667,0.32697137,111470.0,111460.0,0.03581234]
[1752104997072,0.32697137,111470.0,111460.0,0.05493234]
[1752104999614,0.32697137,111470.0,111460.0,0.05493195]
[1752105000240,0.32697137,111470.0,111460.0,0.03783195]
[1752105000655,0.32697137,111470.0,111460.0,0.03581195]
[1752105001635,0.32697137,111470.0,111460.0,0.03581202]
[1752105002316,0.74397257,111470.0,111460.0,0.01781202]
[1752105004390,0.74397257,111470.0,111460.0,0.01781332]
[1752105004808,1.08397257,111470.0,111460.0,0.01781332]
[1752105008896,1.11627265,111470.0,111460.0,0.01781332]
[1752105011486,0.7584083,111470.0,111460.0,0.01781332]
[1752105011725,0.6220083,111470.0,111460.0,0.03521332]
[1752105011904,0.7584083,111470.0,111460.0,0.03521332]
[1752105012717,0.7584083,111470.0,111460.0,0.05270363]
[1752105013302,0.7584083,111470.0,111460.0,0.01780363]
[1752105015639,0.7584083,111470.0,111460.0,0.01780063]
[1752105017163,1.04817257,111470.0,111460.0,0.01780063]
[1752105017573,0.7584083,111470.0,111460.0,0.01780063]
[1752105017768,0.7583683,111470.0,111460.0,0.03590063]
[1752105018030,0.7583683,111470.0,111460.0,0.05340063]
[1752105018463,0.7583683,111470.0,111460.0,0.01780063]
[1752105019486,1.04813257,111470.0,111460.0,0.01780063]
[1752105021532,0.7583683,111470.0,111460.0,0.01780063]
[1752105021733,1.04813257,111470.0,111460.0,0.01780063]
[1752105023892,1.08043481,111470.0,111460.0,0.01780063]
[1752105024140,1.08043481,111470.0,111460.0,0.0178135]
[1752105025714,1.04813257,111470.0,111460.0,0.0178135]
[1752105026438,1.08043636,111470.0,111460.0,0.0178135]
[1752105026973,1.08043636,111470.0,111460.0,0.01781398]
[1752105028818,1.08071128,111470.0,111460.0,0.01781398]
[1752105029644,1.08071128,111470.0,111460.0,0.01781675]
[1752105032584,1.08071128,111470.0,111460.0,0.01781886]
[1752105034685,0.79067209,111470.0,111460.0,0.01781886]
[1752105034895,1.08071128,111470.0,111460.0,0.01781886]
[1752105036949,0.79067209,111470.0,111460.0,0.01781886]
[1752105037151,1.08071128,111470.0,111460.0,0.01781886]
[1752105040018,0.56599822,111460.0,111450.0,0.00044676]
[1752105040224,0.56599822,111460.0,111450.0,0.29247595]
[1752105040225,0.65434915,111460.0,111450.0,0.29247595]
[1752105040415,0.32476822,111460.0,111450.0,0.32937595]
[1752105040572,0.18840822,111460.0,111450.0,0.32937595]
[1752105040782,0.32476822,111460.0,111450.0,0.33262595]
[1752105041173,0.32476822,111460.0,111450.0,0.04258676]
[1752105041361,0.32476822,111460.0,111450.0,0.04133676]
[1752105041802,0.32476822,111460.0,111450.0,0.04333676]
[1752105042782,0.35708102,111460.0,111450.0,0.04333676]
[1752105043166,0.32476822,111460.0,111450.0,0.04333676]
[1752105045152,0.32676822,111460.0,111450.0,0.04333676]
[1752105045361,0.61680741,111460.0,111450.0,0.04333676]
[1752105045554,0.48044741,111460.0,111450.0,0.04333676]
[1752105045780,0.61680741,111460.0,111450.0,0.04333676]
[1752105046604,0.70843434,111460.0,111450.0,0.00444676]
[1752105047558,0.70843434,111460.0,111450.0,0.00244676]
[1752105047764,0.72603434,111460.0,111450.0,0.00044676]
[1752105048796,1.08363434,111460.0,111450.0,0.00044676]
[1752105049004,1.49741925,111460.0,111450.0,0.00044676]
[1752105049236,1.40598232,111460.0,111450.0,0.00044676]
[1752105050518,1.42052317,111460.0,111450.0,0.00044676]
[1752105050932,1.46091298,111460.0,111450.0,0.00044676]
[1752105051358,1.46291298,111460.0,111450.0,0.00044676]
[1752105051569,1.46591298,111460.0,111450.0,1e-08]
[1752105052224,1.17587379,111460.0,111450.0,1e-08]
[1752105052851,0.8858346,111460.0,111450.0,1e-08]
[1752105053306,5.8858346,111460.0,111450.0,1e-08]
[1752105054675,5.8858346,111460.0,111440.0,0.0057294]
[1752105054676,0.55639752,111450.0,111440.0,0.0057294]
[1752105054883,1.12505682,111450.0,111440.0,0.00577617]
[1752105056447,1.12705682,111450.0,111440.0,0.00577617]
[1752105057373,1.12805682,111450.0,111440.0,0.00577617]
[1752105058880,1.09574803,111450.0,111440.0,0.00577617]
[1752105059597,0.63402445,111450.0,111440.0,0.02516617]
[1752105059796,0.63183445,111450.0,111440.0,0.33344975]
[1752105059977,0.67687752,111450.0,111440.0,0.33669975]
[1752105060544,0.33687752,111450.0,111440.0,0.33669975]
[1752105060958,0.20039752,111450.0,111440.0,0.33669975]
[1752105061202,0.33691752,111450.0,111440.0,0.33669975]
[1752105061740,0.20039752,111450.0,111440.0,0.33669975]
[1752105061938,0.33695752,111450.0,111440.0,0.33669975]
[1752105062178,0.33695752,111450.0,111440.0,0.04651617]
[1752105062387,0.20039752,111450.0,111440.0,0.51616852]
[1752105062591,0.33695752,111450.0,111440.0,0.53411498]
[1752105062772,0.31901266,111450.0,111440.0,0.51616852]
[1752105062918,0.18245266,111450.0,111440.0,0.51616852]
[1752105063131,0.31901266,111450.0,111440.0,0.51616852]
[1752105063337,0.31901266,111450.0,111440.0,0.52514195]
[1752105063544,0.31901266,111450.0,111440.0,0.51616852]
[1752105063740,0.31901266,111450.0,111440.0,0.33669975]
[1752105064631,0.003,111450.0,111440.0,0.51616852]
[1752105064809,0.20816976,111450.0,111440.0,0.52514179]
[1752105065017,0.3429291,111450.0,111440.0,0.5341149]
[1752105065243,0.34288967,111450.0,111440.0,0.51616852]
[1752105065459,0.34288967,111450.0,111440.0,0.22598494]
[1752105065460,0.32494513,111450.0,111440.0,0.22598494]
[1752105065700,0.32494513,111450.0,111440.0,0.04651617]
[1752105066346,0.32494513,111450.0,111440.0,0.23495829]
[1752105066564,0.32494513,111450.0,111440.0,0.25175262]
[1752105067143,0.32494513,111450.0,111440.0,0.24277919]
[1752105067754,0.31597266,111450.0,111440.0,0.24277919]
[1752105067867,0.31597266,111450.0,111440.0,0.26973919]
[1752105070846,0.31597266,111450.0,111440.0,0.09027042]
[1752105071051,0.31597266,111450.0,111440.0,0.26973919]
[1752105071377,0.31597266,111450.0,111440.0,0.09027042]
[1752105071818,0.31597266,111450.0,111440.0,0.26973919]
[1752105072970,0.31597266,111450.0,111440.0,0.27871262]
[1752105073346,0.31597266,111450.0,111440.0,0.26973919]
[1752105074943,0.31597266,111450.0,111440.0,0.55980024]
[1752105076373,0.31597266,111450.0,111440.0,0.09027042]
[1752105076613,0.31597266,111450.0,111440.0,0.55980024]
[1752105077858,0.31597266,111450.0,111440.0,0.38033147]
[1752105078591,0.31597266,111450.0,111440.0,0.55655024]
[1752105078801,0.31597266,111450.0,111440.0,0.55953024]
[1752105078995,0.31597266,111450.0,111440.0,0.09000042]
[1752105079199,0.31597266,111450.0,111440.0,0.55953024]
[1752105079404,0.31597266,111450.0,111440.0,0.38006147]
[1752105081010,0.31597266,111450.0,111440.0,0.37708147]
[1752105081827,0.31597266,111450.0,111440.0,0.56850367]
[1752105082717,0.31597266,111450.0,111440.0,0.55953024]
[1752105084440,0.31597266,111450.0,111440.0,0.56850367]
[1752105084645,0.31597266,111450.0,111440.0,0.57747694]
[1752105085129,0.31593266,111450.0,111440.0,0.57747694]
[1752105085334,0.32490521,111450.0,111440.0,0.57747702]
[1752105085710,0.18842521,111450.0,111440.0,0.57747702]
[1752105085963,0.33387752,111450.0,111440.0,0.59542348]
[1752105086174,0.01794486,111450.0,111440.0,0.89445708]
[1752105086316,0.16339684,111450.0,111440.0,0.8944566]
[1752105087422,0.17943774,111460.0,111450.0,0.01406255]
[1752105087631,0.33381988,111460.0,111450.0,0.54414282]
[1752105087888,0.15438332,111460.0,111450.0,0.56208744]
[1752105088185,0.3427917,111460.0,111450.0,0.5441429]
[1752105088394,0.3427917,111460.0,111450.0,0.54414298]
[1752105088597,0.3427917,111460.0,111450.0,0.53517051]
[1752105088796,0.3447917,111460.0,111450.0,0.52619796]
[1752105089004,0.3447917,111460.0,111450.0,0.54414314]
[1752105089305,0.3437917,111460.0,111450.0,0.54414314]
[1752105089531,0.33382012,111460.0,111450.0,0.53517059]
[1752105089660,0.33382012,111460.0,111450.0,0.53617059]
[1752105089858,0.33382012,111460.0,111450.0,0.54514314]
[1752105091362,0.33382012,111460.0,111450.0,0.53617059]
[1752105091565,0.33382012,111460.0,111450.0,0.3457653]
[1752105091875,0.33601012,111460.0,111450.0,0.3281653]
[1752105092631,0.33601012,111460.0,111450.0,0.03810425]
[1752105092836,0.33601012,111460.0,111450.0,0.3281653]
[1752105094788,0.33601012,111460.0,111450.0,0.50761796]
[1752105094995,0.33601012,111460.0,111450.0,0.3281653]
[1752105095659,0.33601012,111460.0,111450.0,0.50761796]
[1752105095885,0.33382012,111460.0,111450.0,0.52561796]
[1752105096335,0.33382012,111460.0,111450.0,0.52563826]
[1752105096989,0.33382012,111460.0,111450.0,0.53461089]
[1752105097480,0.33378012,111460.0,111450.0,0.54358344]
[1752105097697,0.33378012,111460.0,111450.0,0.05612455]
[1752105097913,0.33594012,111460.0,111450.0,0.3281856]
[1752105098126,0.33594012,111460.0,111450.0,0.3109856]
[1752105099040,0.33594012,111460.0,111450.0,0.3088756]
[1752105099214,0.33594012,111460.0,111450.0,0.30887392]
[1752105105392,0.62600117,111460.0,111450.0,0.01881287]
[1752105106092,0.62600117,111460.0,111450.0,0.30887392]
[1752105106371,0.33594012,111460.0,111450.0,0.30887392]
[1752105106740,0.66180117,111460.0,111450.0,0.01881287]
[1752105107177,0.37174012,111460.0,111450.0,0.01881287]
[1752105107474,0.66180117,111460.0,111450.0,0.002]
[1752105107686,1.04329915,111460.0,111450.0,0.01881493]
[1752105107884,1.38329915,111460.0,111450.0,0.01881493]
[1752105108840,1.09330074,111460.0,111450.0,0.01881493]
[1752105110310,1.09330074,111460.0,111450.0,0.002]
[1752105110527,1.09330074,111460.0,111450.0,0.01881604]
[1752105112421,1.12555054,111460.0,111450.0,0.01881604]
[1752105113304,1.12555054,111460.0,111450.0,0.002]
[1752105113507,1.12555054,111460.0,111450.0,0.01881088]
[1752105115079,1.21489919,111460.0,111450.0,0.01881088]
[1752105115330,1.43021508,111460.0,111450.0,0.00982998]
[1752105115765,1.14009139,111460.0,111450.0,0.00982998]
[1752105116216,1.47057468,111460.0,111450.0,0.00982998]
[1752105116456,1.19028099,111460.0,111450.0,0.00982998]
[1752105116685,1.19228099,111460.0,111450.0,0.00982998]
[1752105116892,1.28371792,111460.0,111450.0,0.00982998]
[1752105117283,1.28571792,111460.0,111450.0,0.00982998]
[1752105117915,1.19428099,111460.0,111450.0,0.00982998]
[1752105118294,1.19428099,111460.0,111450.0,0.00084787]
[1752105118503,1.48440468,111460.0,111450.0,0.00084787]
[1752105118764,0.22502513,111450.0,111440.0,0.00577617]
[1752105118954,1.12668945,111450.0,111440.0,0.00577617]
[1752105119801,1.07990009,111450.0,111440.0,0.00577617]
[1752105120232,1.08667609,111450.0,111440.0,0.00577617]
[1752105120459,1.08867609,111450.0,111440.0,0.00577617]
[1752105121503,0.56764204,111440.0,111430.0,0.0004]
[1752105121713,1.08576266,111440.0,111430.0,0.0004]
[1752105123077,1.08576266,111440.0,111430.0,0.0014]
[1752105123762,1.17719959,111440.0,111430.0,0.0014]
[1752105123938,1.08576266,111440.0,111430.0,0.0014]
[1752105124171,1.10030351,111440.0,111430.0,0.0014]
[1752105124374,6.10030351,111440.0,111430.0,0.0014]
[1752105124790,6.10030351,111440.0,111430.0,0.0004]
[1752105124791,6.31686351,111440.0,111430.0,0.0004]
[1752105124971,6.18130351,111440.0,111430.0,0.0004]
[1752105125176,1.31786351,111440.0,111430.0,0.0004]
[1752105125592,0.97615897,111440.0,111430.0,0.0004]
[1752105125708,0.97627897,111440.0,111430.0,0.0004]
[1752105126539,1.26640266,111440.0,111430.0,0.0004]
[1752105126747,1.0677159,111440.0,111430.0,0.0004]
[1752105126945,1.26640266,111440.0,111430.0,0.0004]
[1752105128417,1.28480266,111440.0,111430.0,0.0004]
[1752105129053,1.30150266,111440.0,111430.0,0.0004]
[1752105129199,1.01137897,111440.0,111430.0,0.0004]
[1752105129398,1.30150266,111440.0,111430.0,0.0004]
[1752105129598,1.28480266,111440.0,111430.0,0.0004]
[1752105130285,1.26640266,111440.0,111430.0,0.0004]
[1752105130642,1.26640266,111440.0,111430.0,0.01716858]
[1752105131105,0.97627897,111440.0,111430.0,0.01716858]
[1752105131227,1.26636266,111440.0,111430.0,0.01716858]
[1752105132243,0.83963897,111440.0,111430.0,0.01925858]
[1752105132442,0.97623897,111440.0,111430.0,0.05445858]
[1752105133979,0.83963897,111440.0,111430.0,0.05445858]
[1752105134178,0.97607897,111440.0,111430.0,0.05445858]
[1752105134572,0.97619897,111440.0,111430.0,0.05445858]
[1752105135397,1.26632266,111440.0,111430.0,0.01716858]
[1752105138703,1.12976266,111440.0,111430.0,0.01716858]
[1752105138902,1.26628266,111440.0,111430.0,0.01716858]
[1752105139333,1.05072266,111440.0,111430.0,0.01716858]
[1752105139905,1.05068266,111440.0,111430.0,0.01716858]
[1752105140295,1.05068266,111440.0,111430.0,0.01719996]
[1752105140506,1.05068266,111440.0,111430.0,0.05408996]
[1752105141057,1.05068266,111440.0,111430.0,0.03728996]
[1752105141266,1.05068266,111440.0,111430.0,0.01719996]
[1752105142102,1.08291067,111440.0,111430.0,0.01719996]
[1752105143388,1.08291067,111440.0,111430.0,0.03549996]
[1752105143587,1.08291067,111440.0,111430.0,0.03758996]
[1752105143809,1.08291067,111440.0,111430.0,0.05438996]
[1752105144559,1.08291067,111440.0,111430.0,0.03549996]
[1752105144761,1.08291067,111440.0,111430.0,0.01719996]
[1752105145893,1.08291067,111440.0,111430.0,0.01722757]
[1752105146310,1.08283067,111440.0,111430.0,0.01722757]